[Event "Titled Tuesday Blitz June 13 Early 2023"]
[White "benny_aizenberg"]
[Black "Yelisieiev, Yevhenii"]
[BlackFideId "14139642"]
[WhiteElo "2686"]
[BlackElo "2403"]
[Result "1-0"]
[Round "11"]
[TimeControl "180+2"]
[Date "2023.06.13"]
[WhiteClock "0:00:13"]
[BlackClock "0:00:03"]
[Board "65"]

1. g4 {[%clk 0:02:55]}  d6 {[%clk 0:03:00]} 2. g5 {[%clk 0:02:56]}  e5 {[%clk 0:02:58]} 3. h4 {[%clk 0:02:54]}  h6 {[%clk 0:02:52]} 4. g6 {[%clk 0:02:54]}  fxg6 {[%clk 0:02:50]} 5. d4 {[%clk 0:02:54]}  Nf6 {[%clk 0:02:40]} 6. dxe5 {[%clk 0:02:48]}  dxe5 {[%clk 0:02:40]} 7. Qxd8+ {[%clk 0:02:49]}  Kxd8 {[%clk 0:02:40]} 8. Nf3 {[%clk 0:02:49]}  Bd6 {[%clk 0:02:35]} 9. Nc3 {[%clk 0:02:49]}  Bf5 {[%clk 0:02:30]} 10. Be3 {[%clk 0:02:21]}  Bxc2 {[%clk 0:02:19]} 11. Rc1 {[%clk 0:02:21]}  Bf5 {[%clk 0:02:18]} 12. Nb5 {[%clk 0:02:17]}  Nc6 {[%clk 0:02:14]} 13. Bg2 {[%clk 0:02:04]}  Bb4+ {[%clk 0:01:59]} 14. Kf1 {[%clk 0:02:01]}  a6 {[%clk 0:01:47]} 15. Na3 {[%clk 0:01:35]}  Nd5 {[%clk 0:01:21]} 16. Bc5 {[%clk 0:01:30]}  e4 {[%clk 0:01:00]} 17. Nd4 {[%clk 0:01:17]}  Bxc5 {[%clk 0:00:56]} 18. Nxc6+ {[%clk 0:01:04]}  bxc6 {[%clk 0:00:56]} 19. Rxc5 {[%clk 0:01:05]}  Kd7 {[%clk 0:00:52]} 20. Nc4 {[%clk 0:00:59]}  Rab8 {[%clk 0:00:48]} 21. b3 {[%clk 0:00:58]}  Rb5 {[%clk 0:00:46]} 22. Ne5+ {[%clk 0:00:55]}  Kc8 {[%clk 0:00:29]} 23. Rxc6 {[%clk 0:00:47]}  Nb4 {[%clk 0:00:27]} 24. Rc4 {[%clk 0:00:25]}  Nxa2 {[%clk 0:00:20]} 25. Nf7 {[%clk 0:00:25]}  Rf8 {[%clk 0:00:15]} 26. Nd6+ {[%clk 0:00:25]}  Kd7 {[%clk 0:00:14]} 27. Nxb5 {[%clk 0:00:22]}  axb5 {[%clk 0:00:15]} 28. Rd4+ {[%clk 0:00:20]}  Kc6 {[%clk 0:00:13]} 29. Bxe4+ {[%clk 0:00:20]}  Bxe4 {[%clk 0:00:09]} 30. Rxe4 {[%clk 0:00:21]}  Kd5 {[%clk 0:00:09]} 31. f3 {[%clk 0:00:20]}  c5 {[%clk 0:00:06]} 32. Kf2 {[%clk 0:00:20]}  Nc3 {[%clk 0:00:06]} 33. Re7 {[%clk 0:00:20]}  Ra8 {[%clk 0:00:04]} 34. Rxg7 {[%clk 0:00:19]}  Ra2 {[%clk 0:00:04]} 35. Re1 {[%clk 0:00:18]}  Ra6 {[%clk 0:00:04]} 36. Rd7+ {[%clk 0:00:18]}  Ke6 {[%clk 0:00:04]} 37. Rd3 {[%clk 0:00:17]}  b4 {[%clk 0:00:04]} 38. Ke3 {[%clk 0:00:17]}  Ra3 {[%clk 0:00:04]} 39. Rg1 {[%clk 0:00:17]}  Kf5 {[%clk 0:00:03]} 40. f4 {[%clk 0:00:14]}  Rxb3 {[%clk 0:00:04]} 41. Kf3 {[%clk 0:00:14]}  c4 {[%clk 0:00:02]} 42. Re3 {[%clk 0:00:09]}  Nd5 {[%clk 0:00:01]} 43. Rxb3 {[%clk 0:00:09]}  cxb3 {[%clk 0:00:02]} 44. Rb1 {[%clk 0:00:10]}  Nxf4 {[%clk 0:00:03]} 45. Rxb3 {[%clk 0:00:10]}  Nd5 {[%clk 0:00:03]} 46. e4+ {[%clk 0:00:10]}  Ke5 {[%clk 0:00:03]} 47. exd5 {[%clk 0:00:10]}  Kxd5 {[%clk 0:00:03]} 48. Rxb4 {[%clk 0:00:11]}  Ke5 {[%clk 0:00:03]} 49. Rb6 {[%clk 0:00:11]}  Kf5 {[%clk 0:00:03]} 50. h5 {[%clk 0:00:11]}  gxh5 {[%clk 0:00:02]} 51. Rxh6 {[%clk 0:00:12]}  Kg5 {[%clk 0:00:02]} 52. Rh8 {[%clk 0:00:12]}  h4 {[%clk 0:00:03]} 53. Kg2 {[%clk 0:00:13]}  Kg4 {[%clk 0:00:04]} 54. Kh2 {[%clk 0:00:13]}  h3 {[%clk 0:00:05]} 55. Rh7 {[%clk 0:00:12]}  Kf4 {[%clk 0:00:03]} 56. Kxh3 {[%clk 0:00:13]} 1-0


[Site "https://www.chess.com"]

[Event "Titled Tuesday Blitz June 13 Early 2023"]
[White "Kashlinskaya, Alina"]
[Black "Jovic, Stanoje"]
[WhiteFideId "4198026"]
[BlackFideId "905020"]
[WhiteElo "2383"]
[BlackElo "2236"]
[Result "0-1"]
[Round "11"]
[TimeControl "180+2"]
[Date "2023.06.13"]
[WhiteClock "0:01:22"]
[BlackClock "0:01:57"]
[Board "67"]

1. Nf3 {[%clk 0:03:00]}  Nf6 {[%clk 0:02:59]} 2. g3 {[%clk 0:03:01]}  b5 {[%clk 0:02:59]} 3. Bg2 {[%clk 0:03:01]}  Bb7 {[%clk 0:02:59]} 4. O-O {[%clk 0:03:02]}  c5 {[%clk 0:02:59]} 5. a4 {[%clk 0:02:59]}  b4 {[%clk 0:02:58]} 6. d3 {[%clk 0:03:00]}  d5 {[%clk 0:02:56]} 7. c3 {[%clk 0:02:51]}  a5 {[%clk 0:02:55]} 8. Nbd2 {[%clk 0:02:47]}  e6 {[%clk 0:02:54]} 9. Nb3 {[%clk 0:02:46]}  Nbd7 {[%clk 0:02:47]} 10. c4 {[%clk 0:02:30]}  Be7 {[%clk 0:02:40]} 11. Be3 {[%clk 0:02:24]}  O-O {[%clk 0:02:37]} 12. Qc2 {[%clk 0:02:23]}  Rc8 {[%clk 0:02:33]} 13. h3 {[%clk 0:02:16]}  Re8 {[%clk 0:02:33]} 14. Rfd1 {[%clk 0:02:14]}  Bd6 {[%clk 0:02:31]} 15. Qd2 {[%clk 0:01:46]}  Qc7 {[%clk 0:02:21]} 16. Qe1 {[%clk 0:01:43]}  h6 {[%clk 0:02:17]} 17. Rac1 {[%clk 0:01:36]}  Bc6 {[%clk 0:02:11]} 18. Ra1 {[%clk 0:01:36]}  Ra8 {[%clk 0:02:06]} 19. Bd2 {[%clk 0:01:35]}  Nb6 {[%clk 0:02:04]} 20. Nh4 {[%clk 0:01:23]}  Bxa4 {[%clk 0:02:00]} 21. Bc1 {[%clk 0:01:22]}  Bxb3 {[%clk 0:01:57]} 0-1


[Site "https://www.chess.com"]

[Event "Titled Tuesday Blitz June 13 Early 2023"]
[White "Fiorito, Joaquin"]
[Black "Petukhov, Dmitry"]
[WhiteFideId "180173"]
[BlackFideId "4142748"]
[WhiteElo "2199"]
[BlackElo "2311"]
[Result "0-1"]
[Round "11"]
[TimeControl "180+2"]
[Date "2023.06.13"]
[WhiteClock "0:00:14"]
[BlackClock "0:00:14"]
[Board "68"]

1. d4 {[%clk 0:03:00]}  Nf6 {[%clk 0:02:57]} 2. c4 {[%clk 0:03:00]}  g6 {[%clk 0:02:56]} 3. Nc3 {[%clk 0:03:01]}  d5 {[%clk 0:02:50]} 4. Nf3 {[%clk 0:03:01]}  Bg7 {[%clk 0:02:47]} 5. h4 {[%clk 0:03:01]}  O-O {[%clk 0:02:41]} 6. cxd5 {[%clk 0:02:57]}  Nxd5 {[%clk 0:02:41]} 7. h5 {[%clk 0:02:58]}  Bg4 {[%clk 0:02:35]} 8. Nh2 {[%clk 0:02:43]}  Bf5 {[%clk 0:02:30]} 9. hxg6 {[%clk 0:02:43]}  hxg6 {[%clk 0:02:28]} 10. e4 {[%clk 0:02:39]}  Nxc3 {[%clk 0:02:22]} 11. bxc3 {[%clk 0:02:40]}  Bxe4 {[%clk 0:02:22]} 12. Ng4 {[%clk 0:02:41]}  c5 {[%clk 0:02:05]} 13. Qd2 {[%clk 0:02:29]}  Re8 {[%clk 0:01:54]} 14. Nh6+ {[%clk 0:02:29]}  Kf8 {[%clk 0:01:46]} 15. Qf4 {[%clk 0:02:25]}  Bd5 {[%clk 0:01:39]} 16. c4 {[%clk 0:02:16]}  e5 {[%clk 0:01:34]} 17. Qg3 {[%clk 0:01:48]}  exd4+ {[%clk 0:01:28]} 18. Kd1 {[%clk 0:01:48]}  Be6 {[%clk 0:01:14]} 19. Bd3 {[%clk 0:01:39]}  Nc6 {[%clk 0:01:07]} 20. Ng4 {[%clk 0:01:33]}  Qd7 {[%clk 0:00:59]} 21. Nh2 {[%clk 0:01:08]}  Ne5 {[%clk 0:00:53]} 22. Ba3 {[%clk 0:01:05]}  b6 {[%clk 0:00:48]} 23. Be4 {[%clk 0:00:52]}  Rad8 {[%clk 0:00:41]} 24. Bc1 {[%clk 0:00:52]}  d3 {[%clk 0:00:32]} 25. Nf1 {[%clk 0:00:52]}  Qd4 {[%clk 0:00:28]} 26. Qh4 {[%clk 0:00:37]}  Qxa1 {[%clk 0:00:23]} 27. Nd2 {[%clk 0:00:37]}  Qc3 {[%clk 0:00:16]} 28. Nb3 {[%clk 0:00:17]}  Qc2+ {[%clk 0:00:16]} 29. Ke1 {[%clk 0:00:17]}  Nxc4 {[%clk 0:00:15]} 30. Kf1 {[%clk 0:00:14]}  Qd1# {[%clk 0:00:14]} 0-1


[Site "https://www.chess.com"]

[Event "Titled Tuesday Blitz June 13 Early 2023"]
[White "Kumsiashvili, Nikoloz"]
[Black "Vyatkin, Dmitry"]
[WhiteFideId "13600621"]
[BlackFideId "4171900"]
[WhiteElo "2299"]
[BlackElo "2279"]
[Result "1-0"]
[Round "11"]
[TimeControl "180+2"]
[Date "2023.06.13"]
[WhiteClock "0:00:06"]
[BlackClock "0:00:00"]
[Board "69"]

1. Nf3 {[%clk 0:03:00]}  Nf6 {[%clk 0:02:59]} 2. c4 {[%clk 0:03:01]}  g6 {[%clk 0:02:59]} 3. Nc3 {[%clk 0:03:01]}  Bg7 {[%clk 0:02:57]} 4. e4 {[%clk 0:03:01]}  d6 {[%clk 0:02:57]} 5. d4 {[%clk 0:03:02]}  O-O {[%clk 0:02:57]} 6. Be2 {[%clk 0:03:02]}  e5 {[%clk 0:02:57]} 7. O-O {[%clk 0:03:01]}  Nc6 {[%clk 0:02:56]} 8. d5 {[%clk 0:03:01]}  Ne7 {[%clk 0:02:56]} 9. Ne1 {[%clk 0:02:55]}  Nd7 {[%clk 0:02:51]} 10. Be3 {[%clk 0:02:55]}  f5 {[%clk 0:02:51]} 11. f3 {[%clk 0:02:56]}  f4 {[%clk 0:02:48]} 12. Bf2 {[%clk 0:02:56]}  g5 {[%clk 0:02:48]} 13. Nd3 {[%clk 0:02:56]}  Ng6 {[%clk 0:02:37]} 14. c5 {[%clk 0:02:51]}  Rf7 {[%clk 0:02:36]} 15. Rc1 {[%clk 0:02:49]}  Bf8 {[%clk 0:02:35]} 16. cxd6 {[%clk 0:02:38]}  Bxd6 {[%clk 0:02:30]} 17. b4 {[%clk 0:02:37]}  h5 {[%clk 0:02:18]} 18. Nc5 {[%clk 0:02:37]}  Nf6 {[%clk 0:02:11]} 19. Ne6 {[%clk 0:02:36]}  Bxe6 {[%clk 0:02:09]} 20. dxe6 {[%clk 0:02:37]}  Rg7 {[%clk 0:02:09]} 21. Qb3 {[%clk 0:02:32]}  Ne7 {[%clk 0:02:09]} 22. Kh1 {[%clk 0:02:27]}  h4 {[%clk 0:01:48]} 23. h3 {[%clk 0:02:19]}  Nh5 {[%clk 0:01:48]} 24. Rfd1 {[%clk 0:02:06]}  Ng3+ {[%clk 0:01:48]} 25. Bxg3 {[%clk 0:02:06]}  hxg3 {[%clk 0:01:48]} 26. Nb5 {[%clk 0:02:02]}  Rg6 {[%clk 0:01:34]} 27. Nxc7 {[%clk 0:01:48]}  Rc8 {[%clk 0:01:31]} 28. Nb5 {[%clk 0:01:38]}  Rxc1 {[%clk 0:01:30]} 29. Rxc1 {[%clk 0:01:39]}  Qb6 {[%clk 0:01:27]} 30. Qd1 {[%clk 0:01:22]}  Bxb4 {[%clk 0:01:22]} 31. Qd7 {[%clk 0:01:20]}  Kg7 {[%clk 0:01:04]} 32. Nc7 {[%clk 0:01:06]}  Ba3 {[%clk 0:00:38]} 33. Rd1 {[%clk 0:00:57]}  Rh6 {[%clk 0:00:31]} 34. Bf1 {[%clk 0:00:28]}  Qf2 {[%clk 0:00:30]} 35. Qd2 {[%clk 0:00:27]}  Qb6 {[%clk 0:00:21]} 36. Qc2 {[%clk 0:00:23]}  g4 {[%clk 0:00:16]} 37. fxg4 {[%clk 0:00:23]}  f3 {[%clk 0:00:15]} 38. gxf3 {[%clk 0:00:21]}  Qe3 {[%clk 0:00:11]} 39. Ne8+ {[%clk 0:00:15]}  Kf8 {[%clk 0:00:09]} 40. Nd6 {[%clk 0:00:13]}  Qxf3+ {[%clk 0:00:06]} 41. Kg1 {[%clk 0:00:08]}  Qe3+ {[%clk 0:00:03]} 42. Kh1 {[%clk 0:00:07]}  Qf3+ {[%clk 0:00:03]} 43. Kg1 {[%clk 0:00:07]}  Qe3+ {[%clk 0:00:03]} 44. Kg2 {[%clk 0:00:07]}  Bxd6 {[%clk 0:00:00]} 45. Rxd6 {[%clk 0:00:06]} 1-0


[Site "https://www.chess.com"]

[Event "Titled Tuesday Blitz June 13 Early 2023"]
[White "Orlov, Georgi"]
[Black "UNSTOPPABLE_LEGEND"]
[WhiteFideId "2011271"]
[WhiteElo "2622"]
[BlackElo "2477"]
[Result "1-0"]
[Round "11"]
[TimeControl "180+2"]
[Date "2023.06.13"]
[WhiteClock "0:00:27"]
[BlackClock "0:01:15"]
[Board "71"]

1. d4 {[%clk 0:03:00]}  Nf6 {[%clk 0:03:00]} 2. Nf3 {[%clk 0:03:00]}  g6 {[%clk 0:02:59]} 3. Bg5 {[%clk 0:02:59]}  Bg7 {[%clk 0:02:59]} 4. Nbd2 {[%clk 0:02:58]}  O-O {[%clk 0:03:00]} 5. c3 {[%clk 0:02:57]}  d6 {[%clk 0:02:59]} 6. e4 {[%clk 0:02:56]}  c5 {[%clk 0:02:58]} 7. dxc5 {[%clk 0:02:54]}  dxc5 {[%clk 0:02:59]} 8. Qc2 {[%clk 0:02:52]}  Nc6 {[%clk 0:02:59]} 9. Be2 {[%clk 0:02:47]}  b6 {[%clk 0:02:57]} 10. O-O {[%clk 0:02:47]}  Bb7 {[%clk 0:02:57]} 11. Rfd1 {[%clk 0:02:46]}  Qc7 {[%clk 0:02:57]} 12. Nc4 {[%clk 0:02:38]}  Nh5 {[%clk 0:02:56]} 13. a4 {[%clk 0:02:31]}  Nf4 {[%clk 0:02:55]} 14. Bf1 {[%clk 0:02:30]}  Rad8 {[%clk 0:02:45]} 15. Ne3 {[%clk 0:02:24]}  h6 {[%clk 0:02:37]} 16. Bh4 {[%clk 0:02:19]}  g5 {[%clk 0:02:37]} 17. Bg3 {[%clk 0:02:19]}  e6 {[%clk 0:02:38]} 18. h4 {[%clk 0:02:17]}  Ne5 {[%clk 0:02:36]} 19. hxg5 {[%clk 0:02:08]}  Nxf3+ {[%clk 0:02:34]} 20. gxf3 {[%clk 0:02:08]}  hxg5 {[%clk 0:02:35]} 21. a5 {[%clk 0:01:56]}  Bc6 {[%clk 0:02:24]} 22. axb6 {[%clk 0:01:55]}  axb6 {[%clk 0:02:25]} 23. Qb3 {[%clk 0:01:48]}  Ra8 {[%clk 0:02:23]} 24. Nc4 {[%clk 0:01:31]}  b5 {[%clk 0:02:22]} 25. Ne3 {[%clk 0:01:30]}  c4 {[%clk 0:02:20]} 26. Qb4 {[%clk 0:01:26]}  Rxa1 {[%clk 0:02:15]} 27. Rxa1 {[%clk 0:01:25]}  Rb8 {[%clk 0:02:16]} 28. Qc5 {[%clk 0:01:23]}  Bf6 {[%clk 0:02:15]} 29. Ra6 {[%clk 0:01:19]}  Rc8 {[%clk 0:02:13]} 30. Ng4 {[%clk 0:01:17]}  Be7 {[%clk 0:02:12]} 31. Qe5 {[%clk 0:01:13]}  Qxe5 {[%clk 0:02:11]} 32. Nxe5 {[%clk 0:01:13]}  Be8 {[%clk 0:02:12]} 33. Ra7 {[%clk 0:01:09]}  Bc5 {[%clk 0:02:05]} 34. Rb7 {[%clk 0:01:08]}  Ra8 {[%clk 0:02:03]} 35. Ng4 {[%clk 0:01:00]}  Kg7 {[%clk 0:01:58]} 36. Ne5 {[%clk 0:00:42]}  Ra1 {[%clk 0:01:53]} 37. Bxf4 {[%clk 0:00:42]}  gxf4 {[%clk 0:01:53]} 38. Kg2 {[%clk 0:00:39]}  Kf6 {[%clk 0:01:44]} 39. Ng4+ {[%clk 0:00:36]}  Kg5 {[%clk 0:01:44]} 40. Rb8 {[%clk 0:00:34]}  Bc6 {[%clk 0:01:30]} 41. Rg8+ {[%clk 0:00:33]}  Kh5 {[%clk 0:01:30]} 42. Ne5 {[%clk 0:00:31]}  Bb7 {[%clk 0:01:24]} 43. Nxf7 {[%clk 0:00:29]}  Rb1 {[%clk 0:01:22]} 44. Rg5+ {[%clk 0:00:29]}  Kh4 {[%clk 0:01:22]} 45. Rxc5 {[%clk 0:00:29]}  Rxb2 {[%clk 0:01:23]} 46. Nh8 {[%clk 0:00:29]}  e5 {[%clk 0:01:15]} 47. Rxe5 {[%clk 0:00:27]} 1-0


[Site "https://www.chess.com"]

[Event "Titled Tuesday Blitz June 13 Early 2023"]
[White "FunnyDuck66"]
[Black "Moral Garcia, Serafin"]
[BlackFideId "2201925"]
[WhiteElo "2460"]
[BlackElo "2274"]
[Result "1/2-1/2"]
[Round "11"]
[TimeControl "180+2"]
[Date "2023.06.13"]
[WhiteClock "0:00:13"]
[BlackClock "0:00:21"]
[Board "72"]

1. d4 {[%clk 0:03:00]}  Nf6 {[%clk 0:02:59]} 2. Nf3 {[%clk 0:02:59]}  g6 {[%clk 0:02:58]} 3. Bg5 {[%clk 0:03:00]}  Bg7 {[%clk 0:02:58]} 4. Nbd2 {[%clk 0:03:00]}  d5 {[%clk 0:02:58]} 5. e3 {[%clk 0:03:00]}  O-O {[%clk 0:02:58]} 6. Be2 {[%clk 0:02:59]}  c5 {[%clk 0:02:58]} 7. c3 {[%clk 0:02:59]}  b6 {[%clk 0:02:58]} 8. O-O {[%clk 0:02:58]}  Nc6 {[%clk 0:02:56]} 9. a3 {[%clk 0:02:28]}  Bb7 {[%clk 0:02:49]} 10. b4 {[%clk 0:02:28]}  cxb4 {[%clk 0:02:46]} 11. axb4 {[%clk 0:02:29]}  a5 {[%clk 0:02:45]} 12. Qb3 {[%clk 0:02:27]}  axb4 {[%clk 0:02:32]} 13. cxb4 {[%clk 0:02:26]}  Qd6 {[%clk 0:02:29]} 14. b5 {[%clk 0:02:21]}  Na5 {[%clk 0:02:27]} 15. Qb2 {[%clk 0:02:14]}  Rfc8 {[%clk 0:02:20]} 16. Bf4 {[%clk 0:02:13]}  Qd7 {[%clk 0:02:14]} 17. Ne5 {[%clk 0:02:08]}  Qd8 {[%clk 0:02:13]} 18. Rfc1 {[%clk 0:02:07]}  Rxc1+ {[%clk 0:02:10]} 19. Rxc1 {[%clk 0:02:05]}  Rc8 {[%clk 0:02:10]} 20. h3 {[%clk 0:01:54]}  e6 {[%clk 0:02:07]} 21. Rc3 {[%clk 0:01:21]}  Rxc3 {[%clk 0:02:01]} 22. Qxc3 {[%clk 0:01:22]}  Qc8 {[%clk 0:02:01]} 23. Qxc8+ {[%clk 0:01:20]}  Bxc8 {[%clk 0:02:00]} 24. Nd3 {[%clk 0:01:19]}  Bd7 {[%clk 0:01:52]} 25. Nb4 {[%clk 0:01:18]}  Bf8 {[%clk 0:01:49]} 26. Na6 {[%clk 0:01:13]}  Bc8 {[%clk 0:01:47]} 27. Nb8 {[%clk 0:01:07]}  Bb4 {[%clk 0:01:41]} 28. Nf3 {[%clk 0:01:05]}  Nd7 {[%clk 0:01:15]} 29. Na6 {[%clk 0:00:46]}  Be7 {[%clk 0:01:05]} 30. Kf1 {[%clk 0:00:36]}  Kf8 {[%clk 0:01:04]} 31. Ke1 {[%clk 0:00:23]}  Nc4 {[%clk 0:01:03]} 32. Bxc4 {[%clk 0:00:20]}  dxc4 {[%clk 0:01:03]} 33. Kd2 {[%clk 0:00:21]}  Bb7 {[%clk 0:01:00]} 34. Kc3 {[%clk 0:00:20]}  Bd5 {[%clk 0:00:59]} 35. Ne1 {[%clk 0:00:18]}  f6 {[%clk 0:00:56]} 36. f3 {[%clk 0:00:18]}  e5 {[%clk 0:00:56]} 37. Bg3 {[%clk 0:00:18]}  exd4+ {[%clk 0:00:55]} 38. Kxd4 {[%clk 0:00:16]}  Be6 {[%clk 0:00:55]} 39. e4 {[%clk 0:00:16]}  Ba3 {[%clk 0:00:52]} 40. Nc2 {[%clk 0:00:16]}  Bb2+ {[%clk 0:00:50]} 41. Ke3 {[%clk 0:00:16]}  Ke7 {[%clk 0:00:48]} 42. Nc7 {[%clk 0:00:15]}  Bf7 {[%clk 0:00:48]} 43. Kd2 {[%clk 0:00:11]}  Ne5 {[%clk 0:00:43]} 44. Ne3 {[%clk 0:00:10]}  c3+ {[%clk 0:00:39]} 45. Kc2 {[%clk 0:00:11]}  Nc4 {[%clk 0:00:38]} 46. Ncd5+ {[%clk 0:00:08]}  Bxd5 {[%clk 0:00:35]} 47. Nxd5+ {[%clk 0:00:09]}  Ke6 {[%clk 0:00:36]} 48. Bf2 {[%clk 0:00:10]}  Na3+ {[%clk 0:00:34]} 49. Kb3 {[%clk 0:00:10]}  Nxb5 {[%clk 0:00:31]} 50. Bxb6 {[%clk 0:00:10]}  f5 {[%clk 0:00:28]} 51. Ba5 {[%clk 0:00:09]}  fxe4 {[%clk 0:00:28]} 52. fxe4 {[%clk 0:00:09]}  Nd6 {[%clk 0:00:28]} 53. Bxc3 {[%clk 0:00:08]}  Bxc3 {[%clk 0:00:25]} 54. Nxc3 {[%clk 0:00:09]}  Ke5 {[%clk 0:00:26]} 55. Nd5 {[%clk 0:00:09]}  Kxe4 {[%clk 0:00:23]} 56. Nf6+ {[%clk 0:00:09]}  Kf4 {[%clk 0:00:23]} 57. Nxh7 {[%clk 0:00:10]}  Kg3 {[%clk 0:00:22]} 58. Nf6 {[%clk 0:00:09]}  Kxg2 {[%clk 0:00:22]} 59. h4 {[%clk 0:00:09]}  Kh3 {[%clk 0:00:19]} 60. h5 {[%clk 0:00:10]}  g5 {[%clk 0:00:19]} 61. h6 {[%clk 0:00:10]}  Nf7 {[%clk 0:00:20]} 62. h7 {[%clk 0:00:11]}  g4 {[%clk 0:00:19]} 63. Nxg4 {[%clk 0:00:10]}  Kxg4 {[%clk 0:00:20]} 64. Kc4 {[%clk 0:00:11]}  Kg5 {[%clk 0:00:20]} 65. Kd5 {[%clk 0:00:12]}  Kg6 {[%clk 0:00:21]} 66. Ke6 {[%clk 0:00:13]}  Kxh7 {[%clk 0:00:21]} 1/2-1/2


[Site "https://www.chess.com"]

[Event "Titled Tuesday Blitz June 13 Early 2023"]
[White "Haukenfrers, Dale"]
[Black "Kucuksari, Kaan"]
[WhiteFideId "2603780"]
[BlackFideId "6380166"]
[WhiteElo "2086"]
[BlackElo "2364"]
[Result "0-1"]
[Round "11"]
[TimeControl "180+2"]
[Date "2023.06.13"]
[WhiteClock "0:00:56"]
[BlackClock "0:01:45"]
[Board "74"]

1. c3 {[%clk 0:03:00]}  e5 {[%clk 0:02:55]} 2. d3 {[%clk 0:03:01]}  d5 {[%clk 0:02:55]} 3. Nf3 {[%clk 0:03:01]}  c5 {[%clk 0:02:56]} 4. e4 {[%clk 0:03:00]}  Nc6 {[%clk 0:02:54]} 5. Be2 {[%clk 0:02:59]}  Nf6 {[%clk 0:02:53]} 6. Nbd2 {[%clk 0:02:57]}  g6 {[%clk 0:02:51]} 7. O-O {[%clk 0:02:57]}  Bg7 {[%clk 0:02:52]} 8. Qc2 {[%clk 0:02:55]}  O-O {[%clk 0:02:52]} 9. Re1 {[%clk 0:02:55]}  h6 {[%clk 0:02:50]} 10. Nf1 {[%clk 0:02:53]}  d4 {[%clk 0:02:48]} 11. Bd2 {[%clk 0:02:45]}  Be6 {[%clk 0:02:47]} 12. a3 {[%clk 0:02:33]}  a5 {[%clk 0:02:45]} 13. cxd4 {[%clk 0:02:30]}  cxd4 {[%clk 0:02:46]} 14. Rac1 {[%clk 0:02:30]}  a4 {[%clk 0:02:45]} 15. Qb1 {[%clk 0:02:25]}  Nd7 {[%clk 0:02:46]} 16. Ng3 {[%clk 0:02:22]}  Ra6 {[%clk 0:02:34]} 17. Bd1 {[%clk 0:02:21]}  Qe7 {[%clk 0:02:32]} 18. h3 {[%clk 0:02:21]}  Nc5 {[%clk 0:02:32]} 19. Bb4 {[%clk 0:02:16]}  Nxb4 {[%clk 0:02:32]} 20. axb4 {[%clk 0:02:16]}  Nb3 {[%clk 0:02:31]} 21. Bxb3 {[%clk 0:02:10]}  axb3 {[%clk 0:02:32]} 22. Rc5 {[%clk 0:02:07]}  b6 {[%clk 0:02:30]} 23. Rxe5 {[%clk 0:02:02]}  Bxe5 {[%clk 0:02:29]} 24. Nxe5 {[%clk 0:02:02]}  Qxb4 {[%clk 0:02:21]} 25. Kh2 {[%clk 0:01:50]}  Ra2 {[%clk 0:02:18]} 26. Re2 {[%clk 0:01:48]}  Rc8 {[%clk 0:02:17]} 27. f4 {[%clk 0:01:48]}  Rc2 {[%clk 0:02:15]} 28. Qf1 {[%clk 0:01:42]}  Rxe2 {[%clk 0:02:07]} 29. Qxe2 {[%clk 0:01:36]}  Qc3 {[%clk 0:01:50]} 30. f5 {[%clk 0:01:15]}  Qxb2 {[%clk 0:01:48]} 31. Qf3 {[%clk 0:01:13]}  Qxg2+ {[%clk 0:01:46]} 32. Qxg2 {[%clk 0:01:13]}  Rxg2+ {[%clk 0:01:47]} 33. Kxg2 {[%clk 0:01:13]}  b2 {[%clk 0:01:48]} 34. fxe6 {[%clk 0:01:11]}  fxe6 {[%clk 0:01:49]} 35. Nxg6 {[%clk 0:01:08]}  b1=Q {[%clk 0:01:48]} 36. Kf3 {[%clk 0:01:05]}  Qc2 {[%clk 0:01:49]} 37. Ne5 {[%clk 0:01:01]}  b5 {[%clk 0:01:49]} 38. Kg4 {[%clk 0:01:01]}  b4 {[%clk 0:01:50]} 39. h4 {[%clk 0:00:58]}  b3 {[%clk 0:01:50]} 40. Kh5 {[%clk 0:00:59]}  b2 {[%clk 0:01:50]} 41. Kxh6 {[%clk 0:00:59]}  b1=Q {[%clk 0:01:49]} 42. h5 {[%clk 0:00:59]}  Qg1 {[%clk 0:01:48]} 43. Nf5 {[%clk 0:00:58]}  Qd2+ {[%clk 0:01:46]} 44. Ne3 {[%clk 0:00:56]}  Qdxe3# {[%clk 0:01:45]} 0-1


[Site "https://www.chess.com"]

[Event "Titled Tuesday Blitz June 13 Early 2023"]
[White "Iskusnyh, Sergei"]
[Black "Rodchenkov, Sergey D."]
[WhiteFideId "4120027"]
[BlackFideId "4168712"]
[WhiteElo "2492"]
[BlackElo "2277"]
[Result "1-0"]
[Round "11"]
[TimeControl "180+2"]
[Date "2023.06.13"]
[WhiteClock "0:00:47"]
[BlackClock "0:00:39"]
[Board "77"]

1. d4 {[%clk 0:03:00]}  d5 {[%clk 0:02:59]} 2. c4 {[%clk 0:03:00]}  dxc4 {[%clk 0:03:00]} 3. e3 {[%clk 0:02:59]}  Nf6 {[%clk 0:03:01]} 4. Bxc4 {[%clk 0:02:58]}  e6 {[%clk 0:03:01]} 5. Nf3 {[%clk 0:02:57]}  a6 {[%clk 0:03:02]} 6. O-O {[%clk 0:02:56]}  c5 {[%clk 0:03:03]} 7. Nc3 {[%clk 0:02:56]}  b5 {[%clk 0:03:01]} 8. Be2 {[%clk 0:02:56]}  Bb7 {[%clk 0:03:02]} 9. dxc5 {[%clk 0:02:55]}  Bxc5 {[%clk 0:02:51]} 10. Qxd8+ {[%clk 0:02:55]}  Kxd8 {[%clk 0:02:52]} 11. Nd2 {[%clk 0:02:55]}  Nbd7 {[%clk 0:02:50]} 12. Nb3 {[%clk 0:02:55]}  Bd6 {[%clk 0:02:50]} 13. f3 {[%clk 0:02:41]}  Bc7 {[%clk 0:02:45]} 14. e4 {[%clk 0:02:36]}  Bb6+ {[%clk 0:02:42]} 15. Kh1 {[%clk 0:02:36]}  Ke7 {[%clk 0:02:43]} 16. a4 {[%clk 0:02:34]}  b4 {[%clk 0:02:41]} 17. a5 {[%clk 0:02:34]}  Ba7 {[%clk 0:02:31]} 18. Na2 {[%clk 0:02:26]}  Nc5 {[%clk 0:02:19]} 19. Nxc5 {[%clk 0:02:19]}  Bxc5 {[%clk 0:02:20]} 20. Bd2 {[%clk 0:02:17]}  Rhd8 {[%clk 0:02:13]} 21. Rfd1 {[%clk 0:01:47]}  b3 {[%clk 0:01:59]} 22. Nc1 {[%clk 0:01:43]}  Rab8 {[%clk 0:01:59]} 23. Nxb3 {[%clk 0:01:40]}  Bd6 {[%clk 0:02:00]} 24. Be3 {[%clk 0:01:26]}  Nd7 {[%clk 0:01:54]} 25. Nd2 {[%clk 0:01:16]}  f6 {[%clk 0:01:46]} 26. Nc4 {[%clk 0:01:15]}  Bc7 {[%clk 0:01:45]} 27. Nb6 {[%clk 0:01:14]}  Ne5 {[%clk 0:01:38]} 28. Kg1 {[%clk 0:01:07]}  g5 {[%clk 0:01:38]} 29. Kf2 {[%clk 0:01:06]}  h6 {[%clk 0:01:34]} 30. b4 {[%clk 0:01:03]}  f5 {[%clk 0:01:34]} 31. exf5 {[%clk 0:01:00]}  exf5 {[%clk 0:01:35]} 32. Bc5+ {[%clk 0:00:56]}  Ke6 {[%clk 0:01:32]} 33. Nc4 {[%clk 0:00:56]}  Ng6 {[%clk 0:01:14]} 34. Re1 {[%clk 0:00:55]}  Kf6 {[%clk 0:01:12]} 35. Rad1 {[%clk 0:00:54]}  Nf4 {[%clk 0:01:11]} 36. Bf1 {[%clk 0:00:54]}  Bd5 {[%clk 0:01:04]} 37. Nb6 {[%clk 0:00:51]}  Bxb6 {[%clk 0:00:52]} 38. axb6 {[%clk 0:00:47]}  Bb7 {[%clk 0:00:39]} 39. Be7+ {[%clk 0:00:47]} 1-0


[Site "https://www.chess.com"]